Cogmind - Beta 11.1 @@@ ROGUE MODE // 2022.06.03 @ 07:49:42 Player: Exp. Geonium Core Result: Destroyed by EX-DEC with AWS/EX-DEC Performance ------------- Evolutions (1) 500 Regions Visited (4) 800 Robots Destroyed (37) 185 Value Destroyed (932) 932 Prototype IDs (26) 520 Alien Tech Used (0) 0 Bonus (392) 392 TOTAL SCORE: 3329 Bonus ------- High Alert Combat Kills 92 Aligned with FarCom 300 Cogmind --------- Core Integrity 0/400 Matter 99/300 Energy 95/100 System Corruption 12% Temperature Cool (0) Movement Core (400) Ox7 Location -9/Exiles Parts ------- > --- POWER (1) -------- (None) > --- PROPULSION (2) --- (None) > --- UTILITY (4) ------ Large Storage Unit Transport Network Coupler > --- WEAPON (2) ------- Grenade Launcher > --- INVENTORY (15) --- Light Nuclear Core Light Treads Light Treads Light Treads Modified TNC Improved Medium Laser AWS/Thermal Improved Assault Rifle Improved Assault Rifle Improved Assault Rifle Field Lobotomy Kit (5) Peak State ------------ > --- POWER ------------ Heavy Ion Engine > --- PROPULSION ------- Light Treads Improved Treads > --- UTILITY ---------- Large Storage Unit Structural Scanner Transport Network Coupler Core Shielding > --- WEAPON ----------- Improved Medium Laser Field Lobotomy Kit > --- INVENTORY -------- Light Nuclear Core Light Treads Light Treads Light Treads Modified TNC AWS/Thermal Improved Assault Rifle Improved Assault Rifle Improved Assault Rifle Improved Assault Rifle Grenade Launcher Rocket Launcher Rocket Launcher Rocket Launcher [Rating: 27] Favorites ----------- Power Heavy Ion Engine Engine Heavy Ion Engine Power Core Light Nuclear Core Propulsion Light Treads Treads Light Treads Leg Aluminum Leg Wheel Wheel Utility Structural Scanner Device Structural Scanner Storage Large Storage Unit Processor Transport Network Coupler Protection Core Shielding Weapon Improved Assault Rifle Energy Gun Improved Medium Laser Ballistic Gun Improved Assault Rifle Launcher Grenade Launcher Special Weapon Field Lobotomy Kit Build | -11 -10 -9 -9 -9 ------- Run | Scr Mat Mat Min Exi Slots Evolved 2 | . . 2 . . Power . | . . . . . Propulsion . | . . . . . Utility 2 | . . 2 . . Weapon . | . . . . . Parts Attached 27 | 2 4 14 . 7 Power 2 | . 1 1 . . Engine 1 | . . 1 . . Core 1 | . 1 . . . Reactor . | . . . . . Propulsion 5 | 2 . 3 . . Treads 4 | 2 . 2 . . Leg . | . . . . . Wheel 1 | . . 1 . . Hover . | . . . . . Flight . | . . . . . Utility 4 | . 2 2 . . Device 1 | . 1 . . . Storage 1 | . 1 . . . Processor 1 | . . 1 . . Hackware . | . . . . . Protection 1 | . . 1 . . Artifact . | . . . . . Weapon 16 | . 1 8 . 7 Energy Gun 2 | . . 2 . . Energy Cannon . | . . . . . Ballistic Gun 6 | . 1 4 . 1 Ballistic Cannon . | . . . . . Launcher 6 | . . 2 . 4 Special Weapon 2 | . . . . 2 Impact Weapon . | . . . . . Slashing Weapon . | . . . . . Piercing Weapon . | . . . . . Special Melee Weapon . | . . . . . Unidentified Prototypes 3 | . . 3 . . Corrupted Parts 1 | . . 1 . . System Corruption 6 | . . 6 . . Parts Lost 11 | . . 2 . 9 Power 1 | . . . . 1 Propulsion 3 | . . 1 . 2 Utility 2 | . . . . 2 Weapon 5 | . . 1 . 4 Highest Loss Streak 9 | . . 1 . 9 To Critical Strikes 1 | . . . . 1 Average Slot Usage (%) 96 | . 97 93 100 98 Engine 8 | . 9 4 11 10 Core 2 | . 3 6 . . Treads 21 | . 28 17 22 21 Wheel 1 | . . 4 . . Device 11 | . 13 11 11 10 Storage 11 | . 14 11 11 11 Processor 7 | . . 7 11 11 Protection 7 | . . 7 11 10 Energy Gun 5 | . 4 . 11 10 Ballistic Gun 16 | . 23 20 11 10 Naked Turns . | . . . . . Heaviest Build 41 | 11 30 36 36 41 Greatest Support 43 | 40 40 43 43 43 Greatest Overweight (x) 3 | . . 3 . . Average Overweight (x) . | . . 1 . . Largest Inventory Capacity 15 | 8 15 15 15 15 Average Capacity 13 | 8 9 15 15 15 Most Carried 15 | 6 7 15 15 15 Average Carried 10 | 5 4 9 15 13 Final Capacity 15 | 8 15 15 15 15 Final Carried 15 | 4 6 15 15 12 Class Distribution -------------------- 100% | Mutant Dominant Class ---------------- Mutant | -10/Materials Mutant | -9/Materials Mutant | -9/Mines Mutant | -9/Exiles Resources | -11 -10 -9 -9 -9 ----------- Run | Scr Mat Mat Min Exi Matter Collected 846 | 200 160 430 56 . Remotely . | . . . . . Salvage Created 1235 | . 259 897 45 34 Parts 87 | . 17 51 4 15 Haulers Intercepted 5 | . . 5 . . Recyclers Shooed 1 | . . 1 . . Parts Field Recycled . | . . . . . Retrieved Matter . | . . . . . Parts Self-Destructed . | . . . . . Prevented . | . . . . . Kills | -11 -10 -9 -9 -9 ------- Run | Scr Mat Mat Min Exi Combat Hostiles Destroyed 31 | . 6 15 3 7 Guns 18 | . 6 9 3 . AOE 13 | . . 6 . 7 Classes Destroyed 11 | . 2 6 1 2 Worker 1 | . . 1 . . Builder 1 | . 1 . . . Hauler 5 | . . 5 . . Recycler 1 | . . 1 . . Operator 1 | . . 1 . . Watcher 2 | . . 2 . . Swarmer 3 | . . . 3 . Grunt 17 | . 6 11 . . Sentry 4 | . . 4 . . Zionite 1 | . . . . 1 Assembled 7 | . . . . 7 Best Kill Streak 9 | . 4 8 3 9 Combat Bots Only 7 | . 3 6 3 7 Max Kills in Single Turn 3 | . 2 3 1 2 Gunslinging . | . . . . . Exploded 3 | . . 3 . 2 Melee . | . . . . . Uniques/NPCs Destroyed 1 | . . . . 1 EX-HEX (-9/Exiles) Combat | -11 -10 -9 -9 -9 -------- Run | Scr Mat Mat Min Exi Damage Taken 2142 | . 464 563 144 971 Core 569 | . 154 107 25 283 Absorbed by Shields . | . . . . . Redirected to Shielding 48 | . . 14 4 30 Core Remaining (%) 69 | 100 38 . . . Volleys Fired 92 | . 22 55 6 9 Largest 2 | . 2 2 2 2 Hottest 79 | . 40 60 79 79 Shots Fired 168 | . 44 101 11 12 Gun 152 | . 44 93 11 4 Cannon . | . . . . . Launcher 16 | . . 8 . 8 Special . | . . . . . Kinetic 143 | . 44 91 6 2 Thermal 9 | . . 2 5 2 Explosive 16 | . . 8 . 8 Electromagnetic . | . . . . . Robot Hit Streak 20 | . 10 20 2 5 Robot Miss Streak 2 | . 2 2 2 1 Penetration Max . | . . . . . Secondary Targets 5 | . . 4 1 . Max Gunslinging Chain 1 | . . 1 1 . Shots Hit Robots 118 | . 31 75 5 7 Core Hits 81 | . 14 45 4 18 Critical Kills . | . . . . . Critical Parts Destroyed 1 | . . . 1 . Critical Strikes 2 | . . . 2 . Burn 1 | . . . 1 . Destroy 1 | . . . 1 . Melee Attacks . | . . . . . Impact . | . . . . . Slashing . | . . . . . Piercing . | . . . . . Sneak Attacks . | . . . . . Combat Hostiles . | . . . . . Follow-up Attacks . | . . . . . Damage Inflicted 3252 | . 394 1725 105 1028 Guns 1518 | . 394 1010 83 31 Cannons . | . . . . . Explosions 1712 | . . 715 . 997 Melee . | . . . . . Ramming 22 | . . . 22 . Kinetic 1457 | . 394 999 49 15 Thermal 61 | . . 11 34 16 Explosive 1712 | . . 715 . 997 Electromagnetic . | . . . . . Impact . | . . . . . Slashing . | . . . . . Piercing . | . . . . . Highest Corruption 12 | . 2 6 6 12 Average Corruption 6 | . 2 6 6 6 Corruption Purged . | . . . . . Corruption Blocked . | . . . . . Effects 28 | . . 10 6 12 Message Errors 5 | . . 2 2 1 Matter Fused 7 | . . 2 . 5 Heat Flow Errors 3 | . . 1 1 1 Energy Discharges 4 | . . 2 1 1 Data Loss (minor) 2 | . . 2 . . Data Loss (major) 2 | . . . . 2 Misfires 2 | . . . . 2 Alerts 1 | . . . 1 . Weapon Failures 2 | . . 1 1 . Overload Shots . | . . . . . Overflow Damage 57 | . . . . 57 Projectiles . | . . . . . Explosions 57 | . . . . 57 Melee . | . . . . . Knockbacks . | . . . . . Impact . | . . . . . Kinetic . | . . . . . Secondary . | . . . . . Self-Inflicted Damage 238 | . . 13 . 225 Shots 7 | . . 1 . 6 Rammed 4 | . 1 . 3 . Targets Rammed 4 | . 1 . 3 . Kicked . | . . . . . Crushed . | . . . . . Highest Temperature 166 | . 17 162 166 135 Average Temperature 37 | . 2 49 44 46 Received Heat Transfer 462 | . 168 267 . 27 Siege Activations . | . . . . . Robots Corrupted . | . . . . . Combat Hostiles . | . . . . . Parts Fried . | . . . . . Impact Corruptions . | . . . . . Robots Melted . | . . . . . Combat Hostiles . | . . . . . Parts Melted 1 | . . . 1 . Heat Transferred 210 | . . 25 148 37 Parts Sabotaged . | . . . . . Parts Stolen . | . . . . . Parts Stripped . | . . . . . Power Chain Reactions 1 | . . 1 . . Missiles Intercepted . | . . . . . Alert | -11 -10 -9 -9 -9 ------- Run | Scr Mat Mat Min Exi Peak Influence 593 | . 218 593 305 . Initial 220 | . . 94 220 . Average 271 | . 73 377 300 . Maximum Alert Level 2 | . 1 2 1 . Low Security (%) 40 | 100 91 23 . . Level 1 28 | . 8 18 100 . Level 2 30 | . . 58 . . Level 3 . | . . . . . Level 4 . | . . . . . Level 5 . | . . . . . High Security . | . . . . . Max Security . | . . . . . Squads Dispatched 8 | . 3 5 . . Investigation 4 | . 2 2 . . Extermination . | . . . . . Reinforcement 4 | . 1 3 . . Assault . | . . . . . Garrison . | . . . . . Intercept . | . . . . . Searches Triggered . | . . . . . Construction Impeded . | . . . . . Haulers Reinforced . | . . . . . Active Scanning Responses . | . . . . . Cargo Convoy Interrupts . | . . . . . Stealth | -11 -10 -9 -9 -9 --------- Run | Scr Mat Mat Min Exi Distress Signals 1 | . . 1 . . Communications Jammed . | . . . . . Distress Signals . | . . . . . Times Spotted 45 | . 8 23 5 9 Peak Tracking Total 11 | . 2 7 4 11 Tactical Retreats . | . . . . . Traps | -11 -10 -9 -9 -9 ------- Run | Scr Mat Mat Min Exi Traps Triggered 2 | . 1 1 . . Indirectly . | . . . . . Trap Hack Attempts . | . . . . . Triggered . | . . . . . Disarmed . | . . . . . Reprogrammed . | . . . . . Reused . | . . . . . Traps Extracted . | . . . . . Installed . | . . . . . Triggered . | . . . . . Machines | -11 -10 -9 -9 -9 ---------- Run | Scr Mat Mat Min Exi Machines Disabled 9 | . . 4 1 4 Max in Single Turn 2 | . . 2 1 2 Machines Sabotaged . | . . . . . Garrisons Compromised . | . . . . . Overloaded Fab Kills . | . . . . . Hacking | -11 -10 -9 -9 -9 --------- Run | Scr Mat Mat Min Exi Machines Accessed 5 | . 3 1 . 1 Terminals 3 | . 2 1 . . Fabricators . | . . . . . Repair Stations . | . . . . . Recycling Units 1 | . 1 . . . Scanalyzers . | . . . . . Garrison Access . | . . . . . Total Hacks 12 | . 7 4 . 1 Successful 3 | . 2 . . 1 Failed 8 | . 4 4 . . Catastrophic 2 | . 1 1 . . Database Lockouts 1 | . 1 . . . Manual 12 | . 7 4 . 1 Terminals 10 | . 6 4 . . Fabricators . | . . . . . Repair Stations . | . . . . . Recycling Units 1 | . 1 . . . Scanalyzers . | . . . . . Garrison Access . | . . . . . Terminal Hacks 2 | . 1 . . 1 Robot Analysis 1 | . 1 . . . EX-Prototype ID Bank 1 | . . . . 1 Fabricator Hacks . | . . . . . Repair Station Hacks . | . . . . . Recycling Unit Hacks . | . . . . . Scanalyzer . | . . . . . Garrison Access Hacks . | . . . . . Unauthorized Hacks 1 | . 1 . . . Terminals . | . . . . . Fabricators . | . . . . . Repair Stations . | . . . . . Recycling Units 1 | . 1 . . . Tunnel 1 | . 1 . . . Scanalyzers . | . . . . . Garrison Access . | . . . . . Data Cores Recovered . | . . . . . Used . | . . . . . Hacking Detections 3 | . 2 1 . . Full Trace Events 2 | . 1 1 . . Feedback Events . | . . . . . Feedback Blocked . | . . . . . Robot Schematics Acquired . | . . . . . Robots Built . | . . . . . Authchips . | . . . . . Time . | . . . . . Total Robot Build Rating . | . . . . . Part Schematics Acquired . | . . . . . Parts Built . | . . . . . Authchips . | . . . . . Time . | . . . . . Total Part Build Rating . | . . . . . Parts Repaired . | . . . . . Time . | . . . . . Parts Recycled . | . . . . . Recycled Matter . | . . . . . Retrieved Matter . | . . . . . Retrieved Components . | . . . . . Parts Scanalyzed . | . . . . . Part Schematics Acquired . | . . . . . Parts Damaged . | . . . . . Bothacking | -11 -10 -9 -9 -9 ------------ Run | Scr Mat Mat Min Exi Used RIF Installer . | . . . . . Robots Hacked . | . . . . . Non-combat . | . . . . . Combat . | . . . . . Robot Hacks Applied . | . . . . . Relay Couplers Released . | . . . . . Fabnet Peak Effective % . | . . . . . Robots Rewired . | . . . . . Allies Hacked . | . . . . . Hacks Repelled . | . . . . . Allies | -11 -10 -9 -9 -9 -------- Run | Scr Mat Mat Min Exi Total Allies . | . . . . . Largest Group . | . . . . . Highest-Rated Group . | . . . . . Highest-Rated Ally . | . . . . . Total Orders . | . . . . . Ally Attacks . | . . . . . Total Damage . | . . . . . Kills . | . . . . . Allies Corrupted . | . . . . . Allies Melted . | . . . . . Intel | -11 -10 -9 -9 -9 ------- Run | Scr Mat Mat Min Exi Robot Analysis Total 1 | . 1 . . . Derelict Logs Recovered . | . . . . . Drone Launches . | . . . . . Drone Recoveries . | . . . . . Exploration | -11 -10 -9 -9 -9 ------------- Run | Scr Mat Mat Min Exi Turns Passed 1650 | 3 343 600 182 522 Spaces Moved 844 | 1 159 281 100 303 Core . | . . . . . Treads 710 | 1 159 147 100 303 Legs . | . . . . . Wheels 134 | . . 134 . . Hover . | . . . . . Flight . | . . . . . Fastest Speed 110 | 160 160 110 160 160 Average Speed 153 | 160 160 141 160 160 Slowest Speed 240 | 160 160 240 160 160 Overloaded Moves . | . . . . . Propulsion Burnouts . | . . . . . Robots Hopped . | . . . . . Cave-ins Triggered . | . . . . . Exploration Rate (%) 34 | 2 36 36 31 65 Regions Visited 4 Branch Regions 2 Pre-discovered Areas 1 | . 1 . . . Known Exits Taken . | . . . . . Unknown Exits Taken 4 | 1 1 1 1 . Scrap Searched 1 | . . . 1 . Spaces Dug 5 | . . 5 . . Terrain Destroyed 70 | . . 36 . 34 Melee . | . . . . . Projectile . | . . . . . AOE 70 | . . 36 . 34 Terrain Rammed . | . . . . . Walls Destroyed . | . . . . . Machines Disabled . | . . . . . Actions | -11 -10 -9 -9 -9 --------- Run | Scr Mat Mat Min Exi Total 1025 | 4 202 379 108 332 Wait 24 | . 14 10 . . Move 841 | . 159 280 99 303 Hop . | . . . . . Pick Up 19 | . 2 11 . 6 Fast Attach 7 | . 1 6 . . Attach 8 | 2 1 2 . 3 Detach 3 | . . 3 . . Swap 12 | . 2 6 . 4 Drop 16 | 2 1 6 . 7 Fire 92 | . 22 55 6 9 Melee . | . . . . . Ram . | . . . . . Kick . | . . . . . Crush 3 | . . . 3 . Escape Stasis . | . . . . . Rewire . | . . . . . Trap . | . . . . . Miscellaneous . | . . . . . Route ------- -11/Scrapyard -10/Materials -9/Materials (discovered 2 exits: [*Mat] / [*Min]) -9/Mines -9/Exiles History --------- Turn | Location | Event 4 | -11/Scrapyard | Discovered new exit (range 0) 4 | -11/Scrapyard | Entered Materials 235 | -10/Materials | Discovered new exit (range 16) 294 | -10/Materials | Core integrity fell below 50% 302 | -10/Materials | Build established: Mutant 347 | -10/Materials | Central database locked down 347 | -10/Materials | Entered another Materials area 347 | -9/Materials | Evolved 2 slots: Utility x2 653 | -9/Materials | Discovered new exit (range 8) 929 | -9/Materials | Discovered new exit (range 8) 947 | -9/Materials | Entered Mines 954 | -9/Mines | Received a Rocket Launcher from a helpful Derelict 1122 | -9/Mines | Deemed a non-threat by the Exiles lab entrance 1122 | -9/Mines | Discovered new exit (range 5) 1129 | -9/Mines | Entered Exiles 1169 | -9/Exiles | Met 8R-AWN 1200 | -9/Exiles | Met EX-HEX 1379 | -9/Exiles | Met EX-BIN 1397 | -9/Exiles | Aligned with FarCom system 1398 | -9/Exiles | Given EX-Vault access code 1442 | -9/Exiles | Opened EX-Vault 1450 | -9/Exiles | Found Modified TNC 1455 | -9/Exiles | Found Field Lobotomy Kit 1460 | -9/Exiles | Found AWS/Thermal 1491 | -9/Exiles | Warned to stay clear of 0b10 Research branches 1541 | -9/Exiles | Met EX-DEC 1594 | -9/Exiles | Visited The Gauntlet 1615 | -9/Exiles | Attacked by the Exiles 1641 | -9/Exiles | Core integrity fell below 50% 1648 | -9/Exiles | Core integrity fell below 20% 1648 | -9/Exiles | System corruption reached 10% 1648 | -9/Exiles | Destroyed EX-HEX 1651 | -9/Exiles | Destroyed by EX-DEC with AWS/EX-DEC Last Messages --------------- 01637_ as-71163 destroyed. 01637_ as-79874 destroyed. 01640_ EX-BIN: "I just want to science!" 01640_ as-94296 destroyed. 01640_ Imp. Assault Rifle destroyed. 01640_ Destroyed Imp. Assault Rifle. 01640_ Hvy. Ion Engine destroyed. 01642_ as-14217 destroyed. 01642_ Rocket Launcher destroyed. 01645_ The unstable cave ceiling collapses. 01645_ Testing Apparatus damaged. 01645_ as-62492 destroyed. 01646_ Rocket Launcher destroyed. 01647_ Core Shielding destroyed. 01647_ System corrupted by crushing effect (+2). 01647_ Knocked back. 01648_ EX-HEX destroyed. 01648_ as-41031 destroyed. 01648_ Destroyed EX Chip 2. 01650_ The unstable cave ceiling collapses. Map ----- +----------------------------------------------------+ | ?????????###"""" ??? | | ??????????### ??? | | ??????????###" " ???? "" | | ???????????##"""" ""#??????"" " " " | | ???????????##"" ""###??????###""" "" | | ???????????##" """"####??????#####"""? | | ???????????##""" """###??????????####?? | | ???????????### ""###???????????####?? | | ???????????###"" """###?????????????????? | | ????????????###""" ####?????????????????? | | ????????????####"""" ####??????????????????? | | ?????????????##### ###???????????????????? | | ??????????????######## z ###????????????????????? | | ????????????????####### ###????????????????????? | | ????????????????????### ##?????????????????????? | | ?????????????????????## ##?????????????????????? | | ?????????????????????## ##?????????????????????? | | ?????????????????????## ###????????????????????? | | ????????????????"????# #????????????????????? | | ????????????????""?### % ##???????????????????? | | ???????????????""""# ##???????????????????? | | ?????????????" """ #???????????????????? | | ???????????#"" " ######??????????????? | | ???????????###"""# = # ######??????????????? | | ???????????""" " c """"#"??????????????? | | ???????????"" c @ =%"#"" "???????????? | | ????????? ] " ""##????????? | | ????????? " " "##????????? | | ????????? " """##????????? | | ????????? "" #"" ""##????????? | | ??????????""" " """ """""#"""""#?????????? | | ???????????###"""########"""############?????????? | | ???????????#"" ? ""####"" ""##########?????????? | | ???????????????????????"" """##?????????????????? | | ???????????????????????"""""""##?????????????????? | | ????????????????????????" """"##?????????????????? | | ?????????????????????????"""?????????????????????? | | ?????????????????????????????????????????????????? | | ?????????????????????????????????????????????????? | | ?????????????????????????????????????????????????? | | ?????????????????????????????????????????????????? | | ?????????????????????????????????????????????????? | | | | | | | | | | | | | | | | | +----------------------------------------------------+ Best States ------------- Heat Dissipation 28 Energy Generation 14 Energy Capacity 280 Matter Stores 300 Matter Capacity 300 Sight Range 16 Terrain Scan Density 10 Core Shielding 20 Evasion (%) 40 Recoil Reduction 2 Item Schematics ----------------- None Robot Schematics ------------------ None Fabricated ------------ Nothing Alien Tech Used ----------------- None Achievements -------------- None Challenges ------------ None Game ------ Seed SwarmSurgeWarhead Manual? 0 Play Time 00:21:26 Cumulative 198.9 hours Start 2022.06.03 @ 05:55:24 End 2022.06.03 @ 07:49:42 Sessions 1 Manual Loads 0 Difficulty Rogue Special Mode None Game No. 264 Rogue 264 Adventurer 0 Explorer 0 Win Type - Total 10 Types 8/0/1/1/0/0/0/0/0 Lore% 59 Gallery% 79 Achievement% 70 Wizard Run 0 Options --------- ASCII 0 Keyboard 0 Movement Numpad Keybinds 0 Fullscreen 1 Font 18/Terminus Map View 76x50 Tactical HUD 1 Map Filters NONE Filters NONE Steam 1 RUN: 68c65552-b614-41d4-adb4-77a166b17087